[Event "*** Titled Tuesday Blitz"]
[Site "Chess.com"]
[Date "2021.03.16"]
[Round "8"]
[White "GMJustin"]
[Black "Mikhail_Golubev"]
[Result "0-1"]
[WhiteElo "2325"]
[BlackElo "2551"]
[TimeControl "180+1"]
[EndTime "11:25:54 PDT"]
[Termination "Mikhail_Golubev won on time"]

1. e4 {[%clk 0:03:00.9]} 1... c5 {[%clk 0:02:57]} 2. Nf3 {[%clk 0:02:58.9]} 2...
d6 {[%clk 0:02:57.2]} 3. Bb5+ {[%clk 0:02:54.6]} 3... Nc6 {[%clk 0:02:56.7]} 4.
O-O {[%clk 0:02:49.7]} 4... Bd7 {[%clk 0:02:56.4]} 5. Re1 {[%clk 0:02:47.5]}
5... Nf6 {[%clk 0:02:52.6]} 6. c3 {[%clk 0:02:46.8]} 6... a6 {[%clk 0:02:52.2]}
7. Bxc6 {[%clk 0:02:45.7]} 7... Bxc6 {[%clk 0:02:52.1]} 8. d4 {[%clk 0:02:45.6]}
8... cxd4 {[%clk 0:02:49.9]} 9. cxd4 {[%clk 0:02:41.7]} 9... Bxe4 {[%clk
0:02:49.6]} 10. Nc3 {[%clk 0:02:38.5]} 10... Bxf3 {[%clk 0:02:49.5]} 11. Qxf3
{[%clk 0:02:37.4]} 11... e6 {[%clk 0:02:45.1]} 12. Qxb7 {[%clk 0:02:30.6]} 12...
Qc8 {[%clk 0:02:45]} 13. Qf3 {[%clk 0:01:53.3]} 13... Be7 {[%clk 0:02:43.8]} 14.
Bg5 {[%clk 0:01:50.6]} 14... O-O {[%clk 0:02:38.4]} 15. Ne4 {[%clk 0:00:59.5]}
15... Nxe4 {[%clk 0:02:34.9]} 16. Bxe7 {[%clk 0:00:59.1]} 16... Re8 {[%clk
0:02:33.7]} 17. Rac1 {[%clk 0:00:49.1]} 17... Qb7 {[%clk 0:02:22.1]} 18. Qxe4
{[%clk 0:00:37.9]} 18... Rxe7 {[%clk 0:02:12.7]} 19. Qxb7 {[%clk 0:00:24.6]}
19... Rxb7 {[%clk 0:02:12.3]} 20. Rc2 {[%clk 0:00:24.4]} 20... d5 {[%clk
0:02:06.1]} 21. Rec1 {[%clk 0:00:21.7]} 21... g5 {[%clk 0:02:01.5]} 22. Kf1
{[%clk 0:00:16.9]} 22... Kg7 {[%clk 0:02:01.4]} 23. Ke2 {[%clk 0:00:14.6]} 23...
a5 {[%clk 0:01:58.9]} 24. Kd3 {[%clk 0:00:03.6]} 24... a4 {[%clk 0:01:59]} 25.
Rd2 {[%clk 0:00:02.6]} 25... Rab8 {[%clk 0:01:54.5]} 26. Rcc2 {[%clk 0:00:01.4]}
26... Rb4 {[%clk 0:01:54.6]} 27. Ke3 {[%clk 0:00:01.2]} 27... R8b7 {[%clk
0:01:54.7]} 28. g3 {[%clk 0:00:01.3]} 28... Kg6 {[%clk 0:01:54.7]} 0-1

[Event "*** Titled Tuesday Blitz"]
[Site "Chess.com"]
[Date "2021.03.16"]
[Round "8"]
[White "Pinkito"]
[Black "SameerMujumdar"]
[Result "1-0"]
[WhiteElo "2451"]
[BlackElo "2313"]
[TimeControl "180+1"]
[EndTime "11:26:23 PDT"]
[Termination "Pinkito won by resignation"]

1. d4 {[%clk 0:01:31.6]} 1... Nf6 {[%clk 0:02:58.3]} 2. c4 {[%clk 0:01:31.4]}
2... e6 {[%clk 0:02:58.2]} 3. Nf3 {[%clk 0:01:31.6]} 3... Bb4+ {[%clk
0:02:50.1]} 4. Nbd2 {[%clk 0:01:31.2]} 4... O-O {[%clk 0:02:49.9]} 5. e3 {[%clk
0:01:31.6]} 5... d6 {[%clk 0:02:49]} 6. Bd3 {[%clk 0:01:32.2]} 6... Nc6 {[%clk
0:02:48.3]} 7. O-O {[%clk 0:01:32.6]} 7... Bxd2 {[%clk 0:02:49]} 8. Bxd2 {[%clk
0:01:32.5]} 8... e5 {[%clk 0:02:49.9]} 9. Be2 {[%clk 0:01:32.5]} 9... Bg4 {[%clk
0:02:44.1]} 10. dxe5 {[%clk 0:01:32.6]} 10... dxe5 {[%clk 0:02:44.2]} 11. Bc3
{[%clk 0:01:33.3]} 11... Qe7 {[%clk 0:02:44.1]} 12. h3 {[%clk 0:01:32.2]} 12...
Bh5 {[%clk 0:02:44]} 13. Nh4 {[%clk 0:01:31.8]} 13... Bxe2 {[%clk 0:02:41.7]}
14. Qxe2 {[%clk 0:01:31.9]} 14... Ne4 {[%clk 0:02:36]} 15. Nf5 {[%clk
0:01:14.8]} 15... Qe6 {[%clk 0:02:29.8]} 16. Qg4 {[%clk 0:01:13.4]} 16... g6
{[%clk 0:02:12.2]} 17. Nh6+ {[%clk 0:01:13.1]} 17... Kg7 {[%clk 0:02:11.3]} 18.
Qxe4 {[%clk 0:01:10.8]} 18... Kxh6 {[%clk 0:02:11]} 19. Qh4+ {[%clk 0:01:03.9]}
19... Kg7 {[%clk 0:02:09.5]} 20. f4 {[%clk 0:00:57]} 20... Qxc4 {[%clk
0:02:06.1]} 21. Qg3 {[%clk 0:00:48.5]} 21... Rae8 {[%clk 0:01:54.6]} 22. fxe5
{[%clk 0:00:48.3]} 22... Kg8 {[%clk 0:01:53.2]} 23. e6 {[%clk 0:00:47.5]} 23...
Rxe6 {[%clk 0:01:43.6]} 24. Qxc7 {[%clk 0:00:47.4]} 24... Rxe3 {[%clk
0:01:44.2]} 25. Qxb7 {[%clk 0:00:46.5]} 25... Re2 {[%clk 0:01:40.2]} 26. Rae1
{[%clk 0:00:44.6]} 26... Rxe1 {[%clk 0:01:34.5]} 27. Rxe1 {[%clk 0:00:43.8]}
27... Nd4 {[%clk 0:01:16.6]} 28. Qe4 {[%clk 0:00:35.5]} 28... Rd8 {[%clk
0:01:10.7]} 29. Kh1 {[%clk 0:00:35.7]} 29... Qd5 {[%clk 0:01:05.8]} 30. Qxd5
{[%clk 0:00:33.3]} 30... Rxd5 {[%clk 0:01:05.1]} 31. Rd1 {[%clk 0:00:34]} 1-0

[Event "*** Titled Tuesday Blitz"]
[Site "Chess.com"]
[Date "2021.03.16"]
[Round "8"]
[White "davigator"]
[Black "SilviusTiberius"]
[Result "1-0"]
[WhiteElo "2435"]
[BlackElo "2526"]
[TimeControl "180+1"]
[EndTime "11:26:38 PDT"]
[Termination "davigator won by resignation"]

1. e4 {[%clk 0:03:00.9]} 1... e5 {[%clk 0:02:59.8]} 2. Nf3 {[%clk 0:02:58.8]}
2... Nc6 {[%clk 0:03:00.2]} 3. Bb5 {[%clk 0:02:57.2]} 3... Nf6 {[%clk
0:03:00.5]} 4. d3 {[%clk 0:02:56.4]} 4... d6 {[%clk 0:02:59.4]} 5. c3 {[%clk
0:02:56.1]} 5... Bd7 {[%clk 0:02:59.4]} 6. O-O {[%clk 0:02:55.1]} 6... g6 {[%clk
0:02:59.8]} 7. Re1 {[%clk 0:02:52.3]} 7... Bg7 {[%clk 0:02:59.9]} 8. d4 {[%clk
0:02:52.7]} 8... O-O {[%clk 0:02:57.3]} 9. Nbd2 {[%clk 0:02:48]} 9... exd4
{[%clk 0:02:45.3]} 10. cxd4 {[%clk 0:02:47.1]} 10... a6 {[%clk 0:02:43.2]} 11.
Ba4 {[%clk 0:02:44.4]} 11... b5 {[%clk 0:02:43]} 12. Bc2 {[%clk 0:02:43.4]}
12... Nb4 {[%clk 0:02:42.6]} 13. Bb1 {[%clk 0:02:43.3]} 13... c5 {[%clk
0:02:43.1]} 14. a3 {[%clk 0:02:41.9]} 14... Nc6 {[%clk 0:02:42.4]} 15. d5 {[%clk
0:02:42.1]} 15... Nd4 {[%clk 0:02:13.3]} 16. Nxd4 {[%clk 0:02:37.7]} 16... cxd4
{[%clk 0:02:14.2]} 17. Nf3 {[%clk 0:02:36.9]} 17... Re8 {[%clk 0:02:14.4]} 18.
Bg5 {[%clk 0:02:29]} 18... h6 {[%clk 0:02:09.9]} 19. Bh4 {[%clk 0:02:28.9]}
19... g5 {[%clk 0:02:07.1]} 20. Bg3 {[%clk 0:02:28.7]} 20... Qb6 {[%clk
0:02:06.5]} 21. h3 {[%clk 0:02:20.5]} 21... g4 {[%clk 0:01:53]} 22. hxg4 {[%clk
0:02:19.5]} 22... Bxg4 {[%clk 0:01:52.3]} 23. Bd3 {[%clk 0:02:18.8]} 23... Nh5
{[%clk 0:01:45.3]} 24. Bh2 {[%clk 0:02:16.7]} 24... Be5 {[%clk 0:01:44.1]} 25.
Qd2 {[%clk 0:02:14.7]} 25... Bxf3 {[%clk 0:01:35.8]} 26. gxf3 {[%clk 0:02:14.2]}
26... Qd8 {[%clk 0:01:05.1]} 27. f4 {[%clk 0:02:11.8]} 27... Bg7 {[%clk
0:00:47.1]} 28. Qe2 {[%clk 0:02:09.4]} 28... Qh4 {[%clk 0:00:44.8]} 29. Qf3
{[%clk 0:02:09.8]} 29... Kh8 {[%clk 0:00:40.3]} 30. Kh1 {[%clk 0:02:03.8]} 30...
Rg8 {[%clk 0:00:38]} 31. Rg1 {[%clk 0:02:03.4]} 31... Bf6 {[%clk 0:00:34.9]} 32.
Rxg8+ {[%clk 0:01:54.4]} 32... Rxg8 {[%clk 0:00:34.2]} 33. Rg1 {[%clk
0:01:55.1]} 33... Rxg1+ {[%clk 0:00:28.7]} 34. Kxg1 {[%clk 0:01:55.1]} 34... Bg7
{[%clk 0:00:20.6]} 35. e5 {[%clk 0:01:46.8]} 35... dxe5 {[%clk 0:00:20.4]} 36.
fxe5 {[%clk 0:01:46.8]} 36... Qg5+ {[%clk 0:00:20.6]} 37. Qg2 {[%clk 0:01:39.8]}
37... Bxe5 {[%clk 0:00:20.7]} 38. Qxg5 {[%clk 0:01:38.9]} 38... Bxh2+ {[%clk
0:00:21.2]} 39. Kxh2 {[%clk 0:01:39.4]} 39... hxg5 {[%clk 0:00:21.9]} 40. d6
{[%clk 0:01:39.7]} 40... Nf4 {[%clk 0:00:21.7]} 41. Bf5 {[%clk 0:01:35.5]} 41...
Kg7 {[%clk 0:00:16.2]} 42. d7 {[%clk 0:01:35.1]} 1-0

[Event "*** Titled Tuesday Blitz"]
[Site "Chess.com"]
[Date "2021.03.16"]
[Round "8"]
[White "jraosam"]
[Black "pavelalexandru07"]
[Result "0-1"]
[WhiteElo "1890"]
[BlackElo "2289"]
[TimeControl "180+1"]
[EndTime "11:26:38 PDT"]
[Termination "pavelalexandru07 won by resignation"]

1. c4 {[%clk 0:03:00.9]} 1... Nf6 {[%clk 0:02:58.5]} 2. Nc3 {[%clk 0:02:59.7]}
2... c5 {[%clk 0:02:55.3]} 3. e3 {[%clk 0:02:59.8]} 3... e6 {[%clk 0:02:53.2]}
4. d4 {[%clk 0:03:00.7]} 4... a6 {[%clk 0:02:46.7]} 5. d5 {[%clk 0:02:59.9]}
5... exd5 {[%clk 0:02:46.5]} 6. cxd5 {[%clk 0:02:56.7]} 6... d6 {[%clk
0:02:46.9]} 7. a4 {[%clk 0:02:52.7]} 7... g6 {[%clk 0:02:46.9]} 8. e4 {[%clk
0:02:49.2]} 8... Bg7 {[%clk 0:02:42.8]} 9. Nf3 {[%clk 0:02:49.6]} 9... O-O
{[%clk 0:02:40.1]} 10. Bd3 {[%clk 0:02:50.1]} 10... Bg4 {[%clk 0:02:39.8]} 11.
h3 {[%clk 0:02:49.3]} 11... Bxf3 {[%clk 0:02:40.3]} 12. Qxf3 {[%clk 0:02:50.2]}
12... Nbd7 {[%clk 0:02:40.7]} 13. Qd1 {[%clk 0:02:49.5]} 13... Qa5 {[%clk
0:02:36.5]} 14. O-O {[%clk 0:02:49.1]} 14... b5 {[%clk 0:02:36.7]} 15. Kh1
{[%clk 0:02:50]} 15... c4 {[%clk 0:02:31.2]} 16. Bc2 {[%clk 0:02:46.5]} 16...
Rfc8 {[%clk 0:02:28.5]} 17. Bf4 {[%clk 0:02:40.5]} 17... b4 {[%clk 0:02:26.5]}
18. Ne2 {[%clk 0:02:38.2]} 18... Nc5 {[%clk 0:02:10]} 19. f3 {[%clk 0:02:28.8]}
19... Ne8 {[%clk 0:01:34.3]} 20. Nd4 {[%clk 0:02:21.1]} 20... Qb6 {[%clk
0:01:20.9]} 21. a5 {[%clk 0:02:20.1]} 21... Qb7 {[%clk 0:01:20.4]} 22. Ba4
{[%clk 0:02:06.6]} 22... Nd3 {[%clk 0:01:03.2]} 23. Bc6 {[%clk 0:01:53.1]} 23...
Qa7 {[%clk 0:00:55.7]} 24. Bxa8 {[%clk 0:01:41.8]} 24... Qxd4 {[%clk 0:00:50.2]}
25. Bb7 {[%clk 0:01:41.9]} 25... Rc7 {[%clk 0:00:47.5]} 26. Bxa6 {[%clk
0:01:40.9]} 26... Qxb2 {[%clk 0:00:31.6]} 27. Rb1 {[%clk 0:01:26.3]} 27... Nf2+
{[%clk 0:00:30.7]} 28. Rxf2 {[%clk 0:01:13]} 28... Qxf2 {[%clk 0:00:30.4]} 29.
Rb3 {[%clk 0:01:13.5]} 29... cxb3 {[%clk 0:00:29.8]} 0-1

[Event "*** Titled Tuesday Blitz"]
[Site "Chess.com"]
[Date "2021.03.16"]
[Round "8"]
[White "ChessQueen"]
[Black "tptagain"]
[Result "0-1"]
[WhiteElo "2713"]
[BlackElo "2869"]
[TimeControl "180+1"]
[EndTime "11:26:44 PDT"]
[Termination "tptagain won by resignation"]

1. e4 {[%clk 0:03:00.9]} 1... g6 {[%clk 0:02:56.3]} 2. d4 {[%clk 0:03:00.5]}
2... Bg7 {[%clk 0:02:56.7]} 3. Nc3 {[%clk 0:03:01.2]} 3... c6 {[%clk 0:02:57.1]}
4. Bc4 {[%clk 0:02:59.2]} 4... d6 {[%clk 0:02:56.1]} 5. Nf3 {[%clk 0:02:57.6]}
5... Nf6 {[%clk 0:02:56.1]} 6. e5 {[%clk 0:02:53.5]} 6... dxe5 {[%clk 0:02:55]}
7. Nxe5 {[%clk 0:02:53.3]} 7... O-O {[%clk 0:02:54.6]} 8. O-O {[%clk 0:02:51.8]}
8... Nbd7 {[%clk 0:02:52.2]} 9. h3 {[%clk 0:02:40.3]} 9... c5 {[%clk 0:02:31.5]}
10. Be3 {[%clk 0:02:17.8]} 10... cxd4 {[%clk 0:02:18.5]} 11. Bxd4 {[%clk
0:02:17.4]} 11... Qc7 {[%clk 0:01:33.4]} 12. Qe2 {[%clk 0:02:16]} 12... a6
{[%clk 0:01:28.5]} 13. Rfe1 {[%clk 0:02:11.9]} 13... Nxe5 {[%clk 0:01:21.2]} 14.
Bxe5 {[%clk 0:02:10.6]} 14... Qc5 {[%clk 0:01:20.3]} 15. a4 {[%clk 0:01:58.9]}
15... Bf5 {[%clk 0:01:10]} 16. Bb3 {[%clk 0:01:54.3]} 16... Rad8 {[%clk
0:01:02.2]} 17. Bf4 {[%clk 0:01:47.7]} 17... Rfe8 {[%clk 0:00:53.6]} 18. a5
{[%clk 0:01:44.1]} 18... e5 {[%clk 0:00:50.7]} 19. Be3 {[%clk 0:01:44]} 19...
Qc7 {[%clk 0:00:49.8]} 20. Bb6 {[%clk 0:01:43.8]} 20... Qc8 {[%clk 0:00:48.1]}
21. Bxd8 {[%clk 0:01:43.9]} 21... Qxd8 {[%clk 0:00:48.7]} 22. Red1 {[%clk
0:01:40.6]} 22... Qc8 {[%clk 0:00:48.7]} 23. Na4 {[%clk 0:01:33.8]} 23... e4
{[%clk 0:00:46]} 24. Nb6 {[%clk 0:01:33.2]} 24... Qc7 {[%clk 0:00:46.2]} 25. c3
{[%clk 0:01:29.4]} 25... e3 {[%clk 0:00:44.9]} 26. fxe3 {[%clk 0:01:25.9]} 26...
Bh6 {[%clk 0:00:44.7]} 27. Qc4 {[%clk 0:01:11.2]} 27... Qe7 {[%clk 0:00:44.9]}
28. Nd5 {[%clk 0:00:59]} 28... Nxd5 {[%clk 0:00:40.5]} 29. Qxd5 {[%clk
0:00:59.9]} 29... Be6 {[%clk 0:00:34.5]} 30. Ba4 {[%clk 0:00:52.2]} 30... Bxd5
{[%clk 0:00:34]} 31. Bxe8 {[%clk 0:00:52.3]} 31... Qxe3+ {[%clk 0:00:33.2]} 0-1

[Event "*** Titled Tuesday Blitz"]
[Site "Chess.com"]
[Date "2021.03.16"]
[Round "8"]
[White "GMaka"]
[Black "Szparu"]
[Result "1-0"]
[WhiteElo "2474"]
[BlackElo "2616"]
[TimeControl "180+1"]
[EndTime "11:26:55 PDT"]
[Termination "GMaka won by resignation"]

1. d4 {[%clk 0:03:00.9]} 1... Nf6 {[%clk 0:02:58.3]} 2. Bg5 {[%clk 0:03:00.4]}
2... d5 {[%clk 0:02:53.2]} 3. e3 {[%clk 0:02:59.4]} 3... c5 {[%clk 0:02:41.5]}
4. c3 {[%clk 0:02:52]} 4... Nc6 {[%clk 0:02:40.2]} 5. Nf3 {[%clk 0:02:47]} 5...
Bg4 {[%clk 0:02:28.9]} 6. Nbd2 {[%clk 0:02:36]} 6... e6 {[%clk 0:02:23.9]} 7.
Bb5 {[%clk 0:02:28.9]} 7... Bd6 {[%clk 0:02:08]} 8. Qa4 {[%clk 0:02:28.5]} 8...
Qb6 {[%clk 0:02:06.5]} 9. Bxf6 {[%clk 0:02:25.3]} 9... Bxf3 {[%clk 0:02:03]} 10.
Bxg7 {[%clk 0:02:21.2]} 10... Rg8 {[%clk 0:01:59.1]} 11. Nxf3 {[%clk 0:01:52.5]}
11... Rxg7 {[%clk 0:01:58.1]} 12. g3 {[%clk 0:01:53.1]} 12... a6 {[%clk
0:01:49.8]} 13. Bxc6+ {[%clk 0:01:51.8]} 13... bxc6 {[%clk 0:01:50.7]} 14. b3
{[%clk 0:01:49.8]} 14... Qb5 {[%clk 0:01:48.9]} 15. Qxb5 {[%clk 0:01:44.9]}
15... axb5 {[%clk 0:01:49]} 16. a4 {[%clk 0:01:44.9]} 16... f6 {[%clk
0:01:47.4]} 17. dxc5 {[%clk 0:01:09]} 17... Be5 {[%clk 0:01:34.4]} 18. Nxe5
{[%clk 0:01:05.5]} 18... fxe5 {[%clk 0:01:35.3]} 19. a5 {[%clk 0:01:05.6]} 19...
b4 {[%clk 0:01:33.4]} 20. cxb4 {[%clk 0:01:06.5]} 20... Rb7 {[%clk 0:01:32.5]}
21. Ra4 {[%clk 0:01:05.8]} 21... e4 {[%clk 0:01:19.5]} 22. Kd2 {[%clk
0:01:03.8]} 22... e5 {[%clk 0:01:17]} 23. Kc3 {[%clk 0:01:03.2]} 23... Ra6
{[%clk 0:01:07.3]} 24. Ra2 {[%clk 0:01:01.6]} 24... Ke7 {[%clk 0:01:03.8]} 25.
Rf1 {[%clk 0:00:58]} 25... Rd7 {[%clk 0:00:53.6]} 26. f3 {[%clk 0:00:56.8]}
26... d4+ {[%clk 0:00:52.8]} 27. exd4 {[%clk 0:00:57.7]} 27... exd4+ {[%clk
0:00:52.3]} 28. Kc4 {[%clk 0:00:52.7]} 28... e3 {[%clk 0:00:51.8]} 29. Rd1
{[%clk 0:00:47.2]} 29... Ra8 {[%clk 0:00:34.8]} 30. Rxd4 {[%clk 0:00:43.7]}
30... Rxd4+ {[%clk 0:00:32]} 31. Kxd4 {[%clk 0:00:44.6]} 31... Rd8+ {[%clk
0:00:32.4]} 32. Kxe3 {[%clk 0:00:44.5]} 32... Kd7 {[%clk 0:00:32.6]} 33. Rd2+
{[%clk 0:00:43.3]} 33... Kc7 {[%clk 0:00:32.3]} 34. Rxd8 {[%clk 0:00:44.2]}
34... Kb7 {[%clk 0:00:33.1]} 1-0

[Event "*** Titled Tuesday Blitz"]
[Site "Chess.com"]
[Date "2021.03.16"]
[Round "8"]
[White "VladimirBugayev"]
[Black "DanilovVladimir"]
[Result "1-0"]
[WhiteElo "2287"]
[BlackElo "2416"]
[TimeControl "180+1"]
[EndTime "11:26:59 PDT"]
[Termination "VladimirBugayev won on time"]

1. e4 {[%clk 0:03:00.9]} 1... e5 {[%clk 0:02:59.5]} 2. Nf3 {[%clk 0:02:59.8]}
2... Nc6 {[%clk 0:02:59.4]} 3. d4 {[%clk 0:02:59.5]} 3... exd4 {[%clk
0:02:59.5]} 4. Nxd4 {[%clk 0:02:59.5]} 4... Nf6 {[%clk 0:02:59.8]} 5. Nxc6
{[%clk 0:02:59.4]} 5... bxc6 {[%clk 0:03:00.7]} 6. e5 {[%clk 0:02:59.4]} 6...
Qe7 {[%clk 0:03:01.3]} 7. Qe2 {[%clk 0:02:59.5]} 7... Nd5 {[%clk 0:03:01.9]} 8.
h4 {[%clk 0:02:59.5]} 8... h6 {[%clk 0:02:55.6]} 9. g3 {[%clk 0:02:54.5]} 9...
a5 {[%clk 0:02:42.5]} 10. c4 {[%clk 0:02:36.9]} 10... Ba6 {[%clk 0:02:35.6]} 11.
b3 {[%clk 0:02:08.5]} 11... Qb4+ {[%clk 0:01:39.8]} 12. Bd2 {[%clk 0:02:06.8]}
12... Qb6 {[%clk 0:01:26.1]} 13. Qe4 {[%clk 0:01:58.6]} 13... Ne7 {[%clk
0:01:03.9]} 14. Nc3 {[%clk 0:01:51.7]} 14... Ng6 {[%clk 0:00:56.8]} 15. h5
{[%clk 0:01:32.4]} 15... Ne7 {[%clk 0:00:54.6]} 16. Na4 {[%clk 0:01:29.2]} 16...
Qa7 {[%clk 0:00:49.8]} 17. Be3 {[%clk 0:01:27.3]} 17... Qb8 {[%clk 0:00:43.2]}
18. Bh3 {[%clk 0:01:24.6]} 18... Nc8 {[%clk 0:00:17.6]} 19. O-O-O {[%clk
0:01:22.8]} 19... Ba3+ {[%clk 0:00:15.6]} 20. Kc2 {[%clk 0:01:22.1]} 20... O-O
{[%clk 0:00:16]} 21. Rxd7 {[%clk 0:01:14.5]} 21... Nb6 {[%clk 0:00:09.6]} 22.
Nxb6 {[%clk 0:01:03.9]} 22... cxb6 {[%clk 0:00:10.5]} 23. e6 {[%clk 0:01:02.4]}
23... fxe6 {[%clk 0:00:04.7]} 24. Bxe6+ {[%clk 0:00:55.3]} 24... Kh8 {[%clk
0:00:04.6]} 25. Qg6 {[%clk 0:00:52.2]} 25... Qe5 {[%clk 0:00:01.8]} 26. Bd4
{[%clk 0:00:47.5]} 1-0

[Event "*** Titled Tuesday Blitz"]
[Site "Chess.com"]
[Date "2021.03.16"]
[Round "8"]
[White "c_r_e_e_p_e_r"]
[Black "chessmadara"]
[Result "1-0"]
[WhiteElo "2356"]
[BlackElo "2188"]
[TimeControl "180+1"]
[EndTime "11:27:02 PDT"]
[Termination "c_r_e_e_p_e_r won by resignation"]

1. e4 {[%clk 0:03:00.9]} 1... c5 {[%clk 0:03:00.1]} 2. Nf3 {[%clk 0:03:01]} 2...
d6 {[%clk 0:02:59.2]} 3. d4 {[%clk 0:03:00.9]} 3... cxd4 {[%clk 0:03:00.1]} 4.
Nxd4 {[%clk 0:03:01.7]} 4... Nf6 {[%clk 0:03:00.3]} 5. Nc3 {[%clk 0:03:02.4]}
5... g6 {[%clk 0:03:00.5]} 6. f3 {[%clk 0:03:01.9]} 6... Bg7 {[%clk 0:02:59.6]}
7. Be3 {[%clk 0:03:02.6]} 7... Nc6 {[%clk 0:02:59.5]} 8. Qd2 {[%clk 0:03:02.5]}
8... O-O {[%clk 0:02:59.1]} 9. Bc4 {[%clk 0:03:03.1]} 9... Na5 {[%clk
0:02:53.5]} 10. Bb3 {[%clk 0:03:02.8]} 10... Bd7 {[%clk 0:02:52.5]} 11. h4
{[%clk 0:03:02.9]} 11... h5 {[%clk 0:02:48.4]} 12. Bh6 {[%clk 0:02:53.5]} 12...
Bxh6 {[%clk 0:02:27.1]} 13. Qxh6 {[%clk 0:02:53.3]} 13... e5 {[%clk 0:02:26.7]}
14. Nde2 {[%clk 0:02:33.4]} 14... Nxb3 {[%clk 0:02:26.3]} 15. axb3 {[%clk
0:02:33]} 15... b5 {[%clk 0:02:26.1]} 16. O-O-O {[%clk 0:02:05.8]} 16... b4
{[%clk 0:02:24.6]} 17. Nd5 {[%clk 0:02:05]} 17... Nxd5 {[%clk 0:02:15.4]} 18.
Rxd5 {[%clk 0:02:03.5]} 18... Be6 {[%clk 0:02:14.8]} 19. Rd2 {[%clk 0:01:43.8]}
19... Qf6 {[%clk 0:02:08.8]} 20. Rxd6 {[%clk 0:01:39.8]} 20... Rac8 {[%clk
0:02:08.7]} 21. Rhd1 {[%clk 0:01:35.5]} 21... Rc7 {[%clk 0:01:52.8]} 22. Qe3
{[%clk 0:01:32.4]} 22... Rfc8 {[%clk 0:01:49.5]} 23. R6d2 {[%clk 0:01:25.5]}
23... Qxh4 {[%clk 0:01:44.4]} 24. g3 {[%clk 0:01:25.5]} 24... Qe7 {[%clk
0:01:42.8]} 25. Kb1 {[%clk 0:01:20]} 25... a5 {[%clk 0:01:36.1]} 26. f4 {[%clk
0:01:12.1]} 26... exf4 {[%clk 0:01:32]} 27. Nxf4 {[%clk 0:01:03.8]} 27... Bg4
{[%clk 0:01:31.5]} 28. Nd5 {[%clk 0:01:03.4]} 28... Qe5 {[%clk 0:01:17.1]} 29.
Rf1 {[%clk 0:00:53.8]} 29... Rc6 {[%clk 0:01:11.7]} 30. Qa7 {[%clk 0:00:45.7]}
30... Qg7 {[%clk 0:00:32.3]} 31. Ne7+ {[%clk 0:00:42.9]} 31... Kh8 {[%clk
0:00:27.1]} 32. Nxc6 {[%clk 0:00:40.9]} 32... Rxc6 {[%clk 0:00:26.8]} 33. Rd8+
{[%clk 0:00:39.5]} 1-0

[Event "*** Titled Tuesday Blitz"]
[Site "Chess.com"]
[Date "2021.03.16"]
[Round "8"]
[White "Darius321"]
[Black "SaqoChess_Twitch"]
[Result "0-1"]
[WhiteElo "2295"]
[BlackElo "2500"]
[TimeControl "180+1"]
[EndTime "11:27:05 PDT"]
[Termination "SaqoChess_Twitch won on time"]

1. e4 {[%clk 0:02:25.5]} 1... c5 {[%clk 0:02:58.2]} 2. Nf3 {[%clk 0:02:25]} 2...
d6 {[%clk 0:02:57.5]} 3. Bb5+ {[%clk 0:02:25]} 3... Nd7 {[%clk 0:02:52.5]} 4. c3
{[%clk 0:02:24.3]} 4... Nf6 {[%clk 0:02:50.7]} 5. Qe2 {[%clk 0:02:23.8]} 5... a6
{[%clk 0:02:48.4]} 6. Ba4 {[%clk 0:02:24]} 6... b5 {[%clk 0:02:46.5]} 7. Bc2
{[%clk 0:02:24]} 7... Bb7 {[%clk 0:02:45.6]} 8. O-O {[%clk 0:02:23.2]} 8... e6
{[%clk 0:02:44.4]} 9. a4 {[%clk 0:02:22.4]} 9... Be7 {[%clk 0:02:42.1]} 10. axb5
{[%clk 0:02:20.6]} 10... axb5 {[%clk 0:02:38.4]} 11. Rxa8 {[%clk 0:02:20.3]}
11... Qxa8 {[%clk 0:02:35.9]} 12. Qxb5 {[%clk 0:02:19.5]} 12... Bxe4 {[%clk
0:02:35.8]} 13. Bxe4 {[%clk 0:02:18]} 13... Qxe4 {[%clk 0:02:31.3]} 14. Na3
{[%clk 0:02:04.9]} 14... O-O {[%clk 0:02:30.2]} 15. d4 {[%clk 0:02:04]} 15...
Rb8 {[%clk 0:02:26.2]} 16. Qa6 {[%clk 0:01:50.9]} 16... d5 {[%clk 0:02:20.7]}
17. Re1 {[%clk 0:01:44.6]} 17... Qg4 {[%clk 0:02:20.5]} 18. Ne5 {[%clk
0:01:29.6]} 18... Nxe5 {[%clk 0:02:19.2]} 19. dxe5 {[%clk 0:01:29.8]} 19... Ne4
{[%clk 0:01:52.1]} 20. Qa7 {[%clk 0:01:09.6]} 20... Re8 {[%clk 0:01:51.3]} 21.
Nb5 {[%clk 0:01:06.7]} 21... Bh4 {[%clk 0:01:41.2]} 22. g3 {[%clk 0:00:56.7]}
22... Bxg3 {[%clk 0:01:26.8]} 23. hxg3 {[%clk 0:00:52.8]} 23... Nxg3 {[%clk
0:01:26.7]} 24. fxg3 {[%clk 0:00:50.9]} 24... Qxg3+ {[%clk 0:01:27.6]} 25. Kf1
{[%clk 0:00:48.1]} 25... Qd3+ {[%clk 0:01:27.6]} 26. Kf2 {[%clk 0:00:43.4]}
26... Qxb5 {[%clk 0:01:28.5]} 27. Re2 {[%clk 0:00:26.1]} 27... Rd8 {[%clk
0:01:24.3]} 28. Be3 {[%clk 0:00:24.6]} 28... d4 {[%clk 0:01:14.8]} 29. cxd4
{[%clk 0:00:24]} 29... cxd4 {[%clk 0:01:15.3]} 30. Bxd4 {[%clk 0:00:24]} 30...
Qb4 {[%clk 0:01:12.7]} 31. Bc3 {[%clk 0:00:20.7]} 31... Qh4+ {[%clk 0:01:09.5]}
32. Kg2 {[%clk 0:00:18.7]} 32... Qg4+ {[%clk 0:01:09.7]} 33. Kf2 {[%clk
0:00:18.8]} 33... h5 {[%clk 0:01:08.9]} 34. Qe7 {[%clk 0:00:14]} 34... Qf4+
{[%clk 0:01:08.7]} 35. Kg2 {[%clk 0:00:13.2]} 35... Rd3 {[%clk 0:01:06.9]} 0-1